{"text_format":"1","workbook":"xlsx","n_sheets":2,"sheets":["Pasiūlymas","Subtiekėjai ir priedai"],"not_rendered":{"charts":0,"images":0,"macros":1,"external_links":0,"defined_names":0,"comments":0,"pivot_tables":0},"unopened":[],"bounds":{"document_bytes":16777216,"sheet_cells":100000,"rows_first":2000,"rows_last":500,"rows_between":2000,"halvings":0,"cell_chars":16384,"cell_head_chars":4096},"cells_cut":0,"cells_raw":0,"read":"whole","date_system":"1900"}

{"sheet":"Pasiūlymas","index":0,"n_rows":471,"n_cols":9,"rows_kept":471,"cut":false,"hidden":false,"merged":[[11,0,11,1],[11,2,11,5],[12,0,12,1],[12,2,12,5],[13,0,13,1],[13,2,13,5],[14,0,14,1],[14,2,14,5],[15,0,15,1],[15,2,15,5],[16,0,16,1],[16,2,16,5],[17,0,17,1],[17,2,17,5],[18,0,18,1],[18,2,18,5],[23,0,23,5],[19,0,19,1],[20,0,20,1],[19,2,19,5],[20,2,20,5],[22,0,22,5],[27,0,27,5],[28,0,28,5],[24,0,24,5],[25,0,25,5],[26,0,26,5]]}
[]
["PIKIMO SĄLYGŲ PRIEDAS \"PASIŪLYMO FORMA\""]
[]
["VAISTAI IR MEDICINOS PRIEMONĖS"]
[]
["Kam:","Gynybos resursų agentūra prie KAM"]
[]
["Data:","2021 m. rugpjūčio mėn. 4 d."]
["Nr.:","S21-159"]
["Vieta:","Pabradė"]
[]
["Tiekėjo pavadinimas / Ūkio subjektų grupės nariai:",null,"UAB \"Intersurgical\""]
["Tiekėjo kodas (-ai):",null,111502432]
["Tiekėjo adresas (-ai):",null,"Arnionių g. 60, LT-18170, Pabradė"]
["Tiekėjo PVM mokėtojo kodas(-ai):",null,"LT11 50 24 314"]
["Tiekėjo / Ūkio subjektų grupės atsakingo partnerio sąskaitos numeris, banko pavadinimas ir banko kodas (-ai):",null,"AB SEB bankas, banko kodas: 70440, A/s: LT58 7044 0600 0101 8621"]
["Asmens atsakingo už pasiūlymą vardas, pavardė:",null,"Klientų aptarnavimo specialistė Ingrida Zarembienė"]
["Asmens atsakingo už pasiūlymą telefono numeris, el. pašto adresas:",null,"8-387-66611, sales@intersurgical.lt"]
["Tiekėjo / Ūkio subjektų grupės, laimėjimo atveju, pasirašančio sutartį asmens vardas, pavardė, pareigos:",null,"Generalinis direktorius Sigitas Žvirblis"]
["Tiekėjo / Ūkio subjektų grupės, laimėjimo atveju, už sutarties vykdymą atsakingo asmens vardas, pavardė, telefono numeris, elektroninio pašto adresas:",null,"Klientų aptarnavimo specialistė Ingrida Zarembienė, 8-387-66514, sales@intersurgical.lt"]
["(1) Tiekėjo / Ūkio subjektų grupės narių, (2) ūkio subjektų, kurių pajėgumais remiamasi, ir (3) jei pašalinimo pagrindai taikomi visiems subtiekėjams - subtiekėjų, kolegialaus priežiūros organo (Stebėtojų tarybos) ir (ar) kolegialaus valdymo organo (Valdybos) narių sąrašas (jei sudaryta) ir (ar) asmuo, kuriam suteikti VPĮ 46 str. 2 d. 2 p. numatyti įgaliojimai",null,"-",null,null,null,{"$f":"IF((SUMPRODUCT(--(C21=\"\"))>0), \"Privaloma užpildyti, kai taikomi pašalinimo pagrindai\", \"\")","v":""}]
[]
["Tiekėjo patvirtinimai:"]
["1. Šiuo pasiūlymu pažymime, kad sutinkame su visomi pirkimo sąlygomis, nustatytomis:"]
["1.1. viešojo pirkimo dokumentuose;"]
["1.2. kituose pirkimo dokumentuose (jų paaiškinimuose, papildymuose)."]
["2. Patvirtiname, kad informacija ir duomenys, pateikti pasiūlyme, yra teisingi ir apima viską, ko reikia tinkamam sutarties įvykdymui"]
["3. Patvirtiname, kad jei pasiūlyme nenurodyti kolegialaus priežiūros/valdymo organų nariai, šie organai juridiniuose asmenyse nėra sudaryti (taikoma, kai pirkimo dokumentuose nustatyti pašalinimo pagrindai)."]
["4. Pasiūlymas galioja iki termino, nustatyto pirkimo dokumentuose, pabaigos."]
[]
["*- Nurodant mato vieneto įkainį  atkreipti dėmesį į mato vienetą, nurodytą kiekvienos pirkimo dalies pasiūlymo lentelėje "]
["1. DALIS","AMYLII NITRAS SOL. INH. 0,3 ML"]
[]
["Tiekėjo pasiūlymas:"]
["Nr.","Pavadinimas","Prekinis pavadinimas, kodas, gamintojas, šalis","Pakuotės dydis (prekių skačius pakuotėje)","Kiekis","Mato vienetas ","Mato vnt. įkainis be PVM, Eur *","Suma be PVM, Eur"]
["1.","Amylii nitras sol. inh. 0,3 ml"]
["1.1.","Amylii nitras sol. inh. 0,3 ml",null,null,12,"amp.",null,{"$f":"IF(ISBLANK(G37),\"\", PRODUCT(E37,G37))","v":""}]
[null,null,null,null,null,null,"Suma be PVM",{"$f":"IF(H37=\"\",\"\",SUM(H37:H37))","v":""},{"$f":"IF(H37=\"\",\"Neužpildytos visos objektų kainos\",\"\")","v":"Neužpildytos visos objektų kainos"}]
[null,null,null,null,null,null,"PVM suma",null,"taikomas 5 % PVM"]
[null,null,null,null,null,null,"Suma su PVM",{"$f":"IF(ISBLANK(H39), \"\", SUM(H38:H39))","v":""}]
[]
[]
[]
["2. DALIS","CALCIUM GLUCONATE SOL. 10% 10 ML"]
[]
["Tiekėjo pasiūlymas:"]
["Nr.","Pavadinimas","Prekinis pavadinimas, kodas, gamintojas, šalis","Pakuotės dydis (prekių skačius pakuotėje)","Kiekis","Mato vienetas","Mato vnt. įkainis be PVM, Eur *","Suma be PVM, Eur"]
["2.","Calcium gluconate sol. 10% 10 ml"]
["2.1.","Calcium gluconate sol. 10% 10 ml",null,null,40,"amp.",null,{"$f":"IF(ISBLANK(G49),\"\", PRODUCT(E49,G49))","v":""}]
[null,null,null,null,null,null,"Suma be PVM",{"$f":"IF(H49=\"\",\"\",SUM(H49:H49))","v":""},{"$f":"IF(H49=\"\",\"Neužpildytos visos objektų kainos\",\"\")","v":"Neužpildytos visos objektų kainos"}]
[null,null,null,null,null,null,"PVM suma",null,"taikomas 5 % PVM"]
[null,null,null,null,null,null,"Suma su PVM",{"$f":"IF(ISBLANK(H51), \"\", SUM(H50:H51))","v":""}]
[]
[]
[]
["3. DALIS","GLUCOSUM SOL. 40% 10 ML"]
[]
["Tiekėjo pasiūlymas:"]
["Nr.","Pavadinimas","Prekinis pavadinimas, kodas, gamintojas, šalis","Pakuotės dydis (prekių skačius pakuotėje)","Kiekis","Mato vienetas","Mato vnt. įkainis be PVM, Eur *","Suma be PVM, Eur"]
["3.","Glucosum sol. 40% 10 ml"]
["3.1.","Glucosum sol. 40% 10 ml",null,null,120,"amp.",null,{"$f":"IF(ISBLANK(G61),\"\", PRODUCT(E61,G61))","v":""}]
[null,null,null,null,null,null,"Suma be PVM",{"$f":"IF(H61=\"\",\"\",SUM(H61:H61))","v":""},{"$f":"IF(H61=\"\",\"Neužpildytos visos objektų kainos\",\"\")","v":"Neužpildytos visos objektų kainos"}]
[null,null,null,null,null,null,"PVM suma",null,"taikomas 5 % PVM"]
[null,null,null,null,null,null,"Suma su PVM",{"$f":"IF(ISBLANK(H63), \"\", SUM(H62:H63))","v":""}]
[]
[]
[]
["4. DALIS","HEPARINUM 1000 TV/G GELE 50,0"]
[]
["Tiekėjo pasiūlymas:"]
["Nr.","Pavadinimas","Prekinis pavadinimas, kodas, gamintojas, šalis","Pakuotės dydis (prekių skačius pakuotėje)","Kiekis","Mato vienetas","Mato vnt. įkainis be PVM, Eur *","Suma be PVM, Eur"]
["4.","Heparinum 1000 TV/g gele 50,0"]
["4.1.","Heparinum 1000 TV/g gele 50,0",null,null,250,"įp.",null,{"$f":"IF(ISBLANK(G73),\"\", PRODUCT(E73,G73))","v":""}]
[null,null,null,null,null,null,"Suma be PVM",{"$f":"IF(H73=\"\",\"\",SUM(H73:H73))","v":""},{"$f":"IF(H73=\"\",\"Neužpildytos visos objektų kainos\",\"\")","v":"Neužpildytos visos objektų kainos"}]
[null,null,null,null,null,null,"PVM suma"]
[null,null,null,null,null,null,"Suma su PVM",{"$f":"IF(ISBLANK(H75), \"\", SUM(H74:H75))","v":""}]
[]
[]
[]
["5. DALIS","HEPARINUM/DIMETHYLIS SULFOXIDUM/DEXPANTHENOLUM 500TV/150 MG/25 MG/G GELE 50,0"]
[]
["Tiekėjo pasiūlymas:"]
["Nr.","Pavadinimas","Prekinis pavadinimas, kodas, gamintojas, šalis","Pakuotės dydis (prekių skačius pakuotėje)","Kiekis","Mato vienetas","Mato vnt. įkainis be PVM, Eur *","Suma be PVM, Eur"]
["5.","Heparinum/Dimethylis sulfoxidum/Dexpanthenolum 500TV/150 mg/25 mg/g gele 50,0"]
["5.1.","Heparinum/Dimethylis sulfoxidum/Dexpanthenolum 500TV/150 mg/25 mg/g gele 50,0",null,null,1000,"įp.",null,{"$f":"IF(ISBLANK(G85),\"\", PRODUCT(E85,G85))","v":""}]
[null,null,null,null,null,null,"Suma be PVM",{"$f":"IF(H85=\"\",\"\",SUM(H85:H85))","v":""},{"$f":"IF(H85=\"\",\"Neužpildytos visos objektų kainos\",\"\")","v":"Neužpildytos visos objektų kainos"}]
[null,null,null,null,null,null,"PVM suma"]
[null,null,null,null,null,null,"Suma su PVM",{"$f":"IF(ISBLANK(H87), \"\", SUM(H86:H87))","v":""}]
[]
[]
[]
["6. DALIS","KETAMINUM 50 MG/ML 5 ML"]
[]
["Tiekėjo pasiūlymas:"]
["Nr.","Pavadinimas","Prekinis pavadinimas, kodas, gamintojas, šalis","Pakuotės dydis (prekių skačius pakuotėje)","Kiekis","Mato vienetas","Mato vnt. įkainis be PVM, Eur *","Suma be PVM, Eur"]
["6.","Ketaminum 50 mg/ml 5 ml"]
["6.1.","Ketaminum 50 mg/ml 5 ml",null,null,100,"amp.",null,{"$f":"IF(ISBLANK(G97),\"\", PRODUCT(E97,G97))","v":""}]
[null,null,null,null,null,null,"Suma be PVM",{"$f":"IF(H97=\"\",\"\",SUM(H97:H97))","v":""},{"$f":"IF(H97=\"\",\"Neužpildytos visos objektų kainos\",\"\")","v":"Neužpildytos visos objektų kainos"}]
[null,null,null,null,null,null,"PVM suma",null,"taikomas 5 % PVM"]
[null,null,null,null,null,null,"Suma su PVM",{"$f":"IF(ISBLANK(H99), \"\", SUM(H98:H99))","v":""}]
[]
[]
[]
["7. DALIS","PIPERUCONII BROMIDUM SOL. 4 MG 2 ML"]
[]
["Tiekėjo pasiūlymas:"]
["Nr.","Pavadinimas","Prekinis pavadinimas, kodas, gamintojas, šalis","Pakuotės dydis (prekių skačius pakuotėje)","Kiekis","Mato vienetas","Mato vnt. įkainis be PVM, Eur *","Suma be PVM, Eur"]
["7.","Piperuconii bromidum sol. 4 mg 2 ml"]
["7.1.","Piperuconii bromidum sol. 4 mg 2 ml",null,null,25,"amp.",null,{"$f":"IF(ISBLANK(G109),\"\", PRODUCT(E109,G109))","v":""}]
[null,null,null,null,null,null,"Suma be PVM",{"$f":"IF(H109=\"\",\"\",SUM(H109:H109))","v":""},{"$f":"IF(H109=\"\",\"Neužpildytos visos objektų kainos\",\"\")","v":"Neužpildytos visos objektų kainos"}]
[null,null,null,null,null,null,"PVM suma",null,"taikomas 5 % PVM"]
[null,null,null,null,null,null,"Suma su PVM",{"$f":"IF(ISBLANK(H111), \"\", SUM(H110:H111))","v":""}]
[]
[]
[]
["8. DALIS","PERSKINDOL GELE 100,0 (ARBA LYGIAVERTIS)"]
[]
["Tiekėjo pasiūlymas:"]
["Nr.","Pavadinimas","Prekinis pavadinimas, kodas, gamintojas, šalis","Pakuotės dydis (prekių skačius pakuotėje)","Kiekis","Mato vienetas","Mato vnt. įkainis be PVM, Eur *","Suma be PVM, Eur"]
["8.","Perskindol gele 100,0 (arba lygiavertis)"]
["8.1.","Perskindol gele 100,0 (arba lygiavertis)",null,null,1500,"įp.",null,{"$f":"IF(ISBLANK(G121),\"\", PRODUCT(E121,G121))","v":""}]
[null,null,null,null,null,null,"Suma be PVM",{"$f":"IF(H121=\"\",\"\",SUM(H121:H121))","v":""},{"$f":"IF(H121=\"\",\"Neužpildytos visos objektų kainos\",\"\")","v":"Neužpildytos visos objektų kainos"}]
[null,null,null,null,null,null,"PVM suma"]
[null,null,null,null,null,null,"Suma su PVM",{"$f":"IF(ISBLANK(H123), \"\", SUM(H122:H123))","v":""}]
[]
[]
[]
["9. DALIS","SINUPRET FORTE (ARBA LYGIAVERTIS) TAB."]
[]
["Tiekėjo pasiūlymas:"]
["Nr.","Pavadinimas","Prekinis pavadinimas, kodas, gamintojas, šalis","Pakuotės dydis (prekių skačius pakuotėje)","Kiekis","Mato vienetas","Mato vnt. įkainis be PVM, Eur *","Suma be PVM, Eur"]
["9.","Sinupret forte (arba lygiavertis) tab."]
["9.1.","Sinupret forte (arba lygiavertis) tab.",null,null,20000,"tab.",null,{"$f":"IF(ISBLANK(G133),\"\", PRODUCT(E133,G133))","v":""}]
[null,null,null,null,null,null,"Suma be PVM",{"$f":"IF(H133=\"\",\"\",SUM(H133:H133))","v":""},{"$f":"IF(H133=\"\",\"Neužpildytos visos objektų kainos\",\"\")","v":"Neužpildytos visos objektų kainos"}]
[null,null,null,null,null,null,"PVM suma"]
[null,null,null,null,null,null,"Suma su PVM",{"$f":"IF(ISBLANK(H135), \"\", SUM(H134:H135))","v":""}]
[]
[]
[]
["10. DALIS","SUMATRIPTANUM 100 MG TAB."]
[]
["Tiekėjo pasiūlymas:"]
["Nr.","Pavadinimas","Prekinis pavadinimas, kodas, gamintojas, šalis","Pakuotės dydis (prekių skačius pakuotėje)","Kiekis","Mato vienetas","Mato vnt. įkainis be PVM, Eur *","Suma be PVM, Eur"]
["10.","Sumatriptanum 100 mg tab."]
["10.1.","Sumatriptanum 100 mg tab.",null,null,60,"tab.",null,{"$f":"IF(ISBLANK(G145),\"\", PRODUCT(E145,G145))","v":""}]
[null,null,null,null,null,null,"Suma be PVM",{"$f":"IF(H145=\"\",\"\",SUM(H145:H145))","v":""},{"$f":"IF(H145=\"\",\"Neužpildytos visos objektų kainos\",\"\")","v":"Neužpildytos visos objektų kainos"}]
[null,null,null,null,null,null,"PVM suma",null,"taikomas 5 % PVM"]
[null,null,null,null,null,null,"Suma su PVM",{"$f":"IF(ISBLANK(H147), \"\", SUM(H146:H147))","v":""}]
[]
[]
[]
["11. DALIS","TAFLUPROSTUM 15 MCG/ML  GTT. OPHT. 3 ML"]
[]
["Tiekėjo pasiūlymas:"]
["Nr.","Pavadinimas","Prekinis pavadinimas, kodas, gamintojas, šalis","Pakuotės dydis (prekių skačius pakuotėje)","Kiekis","Mato vienetas","Mato vnt. įkainis be PVM, Eur *","Suma be PVM, Eur"]
["11.","Tafluprostum 15 mcg/ml  gtt. opht. 3 ml"]
["11.1.","Tafluprostum 15 mcg/ml  gtt. opht. 3 ml",null,null,10,"įp.",null,{"$f":"IF(ISBLANK(G157),\"\", PRODUCT(E157,G157))","v":""}]
[null,null,null,null,null,null,"Suma be PVM",{"$f":"IF(H157=\"\",\"\",SUM(H157:H157))","v":""},{"$f":"IF(H157=\"\",\"Neužpildytos visos objektų kainos\",\"\")","v":"Neužpildytos visos objektų kainos"}]
[null,null,null,null,null,null,"PVM suma",null,"taikomas 5 % PVM"]
[null,null,null,null,null,null,"Suma su PVM",{"$f":"IF(ISBLANK(H159), \"\", SUM(H158:H159))","v":""}]
[]
[]
[]
["12. DALIS","TAFLUPROSTUM 15 MCG/ML 0,3 ML N.30"]
[]
["Tiekėjo pasiūlymas:"]
["Nr.","Pavadinimas","Prekinis pavadinimas, kodas, gamintojas, šalis","Pakuotės dydis (prekių skačius pakuotėje)","Kiekis","Mato vienetas","Mato vnt. įkainis be PVM, Eur *","Suma be PVM, Eur"]
["12.","Tafluprostum 15 mcg/ml 0,3 ml N.30"]
["12.1.","Tafluprostum 15 mcg/ml 0,3 ml N.30",null,null,20,"įp.",null,{"$f":"IF(ISBLANK(G169),\"\", PRODUCT(E169,G169))","v":""}]
[null,null,null,null,null,null,"Suma be PVM",{"$f":"IF(H169=\"\",\"\",SUM(H169:H169))","v":""},{"$f":"IF(H169=\"\",\"Neužpildytos visos objektų kainos\",\"\")","v":"Neužpildytos visos objektų kainos"}]
[null,null,null,null,null,null,"PVM suma",null,"taikomas 5 % PVM"]
[null,null,null,null,null,null,"Suma su PVM",{"$f":"IF(ISBLANK(H171), \"\", SUM(H170:H171))","v":""}]
[]
[]
[]
["13. DALIS","THIOPENTAL 1,0"]
[]
["Tiekėjo pasiūlymas:"]
["Nr.","Pavadinimas","Prekinis pavadinimas, kodas, gamintojas, šalis","Pakuotės dydis (prekių skačius pakuotėje)","Kiekis","Mato vienetas","Mato vnt. įkainis be PVM, Eur *","Suma be PVM, Eur"]
["13.","Thiopental 1,0"]
["13.1.","Thiopental 1,0",null,null,10,"amp.",null,{"$f":"IF(ISBLANK(G181),\"\", PRODUCT(E181,G181))","v":""}]
[null,null,null,null,null,null,"Suma be PVM",{"$f":"IF(H181=\"\",\"\",SUM(H181:H181))","v":""},{"$f":"IF(H181=\"\",\"Neužpildytos visos objektų kainos\",\"\")","v":"Neužpildytos visos objektų kainos"}]
[null,null,null,null,null,null,"PVM suma",null,"taikomas 5 % PVM"]
[null,null,null,null,null,null,"Suma su PVM",{"$f":"IF(ISBLANK(H183), \"\", SUM(H182:H183))","v":""}]
[]
[]
[]
["14. DALIS","VERAPAMIL  SOL. 5 MG/2 ML "]
[]
["Tiekėjo pasiūlymas:"]
["Nr.","Pavadinimas","Prekinis pavadinimas, kodas, gamintojas, šalis","Pakuotės dydis (prekių skačius pakuotėje)","Kiekis","Mato vienetas","Mato vnt. įkainis be PVM, Eur *","Suma be PVM, Eur"]
["14.","Verapamil  sol. 5 mg/2 ml "]
["14.1.","Verapamil  sol. 5 mg/2 ml ",null,null,75,"amp.",null,{"$f":"IF(ISBLANK(G193),\"\", PRODUCT(E193,G193))","v":""}]
[null,null,null,null,null,null,"Suma be PVM",{"$f":"IF(H193=\"\",\"\",SUM(H193:H193))","v":""},{"$f":"IF(H193=\"\",\"Neužpildytos visos objektų kainos\",\"\")","v":"Neužpildytos visos objektų kainos"}]
[null,null,null,null,null,null,"PVM suma",null,"taikomas 5 % PVM"]
[null,null,null,null,null,null,"Suma su PVM",{"$f":"IF(ISBLANK(H195), \"\", SUM(H194:H195))","v":""}]
[]
[]
[]
["15. DALIS","CARBO ACTIVATUS GRAN. 61,5 G"]
[]
["Tiekėjo pasiūlymas:"]
["Nr.","Pavadinimas","Prekinis pavadinimas, kodas, gamintojas, šalis","Pakuotės dydis (prekių skačius pakuotėje)","Kiekis","Mato vienetas","Mato vnt. įkainis be PVM, Eur *","Suma be PVM, Eur"]
["15.","Carbo activatus gran. 61,5 g"]
["15.1.","Carbo activatus gran. 61,5 g",null,null,20,"įp.",null,{"$f":"IF(ISBLANK(G205),\"\", PRODUCT(E205,G205))","v":""}]
[null,null,null,null,null,null,"Suma be PVM",{"$f":"IF(H205=\"\",\"\",SUM(H205:H205))","v":""},{"$f":"IF(H205=\"\",\"Neužpildytos visos objektų kainos\",\"\")","v":"Neužpildytos visos objektų kainos"}]
[null,null,null,null,null,null,"PVM suma",null,"taikomas 5 % PVM"]
[null,null,null,null,null,null,"Suma su PVM",{"$f":"IF(ISBLANK(H207), \"\", SUM(H206:H207))","v":""}]
[]
[]
[]
["16. DALIS","MULTIVITAMINAI TAB./DRAG."]
[]
["Tiekėjo pasiūlymas:"]
["Nr.","Pavadinimas","Prekinis pavadinimas, kodas, gamintojas, šalis","Pakuotės dydis (prekių skačius pakuotėje)","Kiekis","Mato vienetas","Mato vnt. įkainis be PVM, Eur *","Suma be PVM, Eur"]
["16.","Multivitaminai tab./drag."]
["16.1.","Multivitaminai tab./drag.",null,null,32500,"tab./drag.",null,{"$f":"IF(ISBLANK(G217),\"\", PRODUCT(E217,G217))","v":""}]
[null,null,null,null,null,null,"Suma be PVM",{"$f":"IF(H217=\"\",\"\",SUM(H217:H217))","v":""},{"$f":"IF(H217=\"\",\"Neužpildytos visos objektų kainos\",\"\")","v":"Neužpildytos visos objektų kainos"}]
[null,null,null,null,null,null,"PVM suma"]
[null,null,null,null,null,null,"Suma su PVM",{"$f":"IF(ISBLANK(H219), \"\", SUM(H218:H219))","v":""}]
[]
[]
[]
["17. DALIS","GELOSITIN AER. (ARBA LYGIAVERTIS)15 ML"]
[]
["Tiekėjo pasiūlymas:"]
["Nr.","Pavadinimas","Prekinis pavadinimas, kodas, gamintojas, šalis","Pakuotės dydis (prekių skačius pakuotėje)","Kiekis","Mato vienetas","Mato vnt. įkainis be PVM, Eur *","Suma be PVM, Eur"]
["17.","Gelositin aer. (arba lygiavertis)15 ml"]
["17.1.","Gelositin aer. (arba lygiavertis)15 ml",null,null,60,"įp.",null,{"$f":"IF(ISBLANK(G229),\"\", PRODUCT(E229,G229))","v":""}]
[null,null,null,null,null,null,"Suma be PVM",{"$f":"IF(H229=\"\",\"\",SUM(H229:H229))","v":""},{"$f":"IF(H229=\"\",\"Neužpildytos visos objektų kainos\",\"\")","v":"Neužpildytos visos objektų kainos"}]
[null,null,null,null,null,null,"PVM suma"]
[null,null,null,null,null,null,"Suma su PVM",{"$f":"IF(ISBLANK(H231), \"\", SUM(H230:H231))","v":""}]
[]
[]
[]
["18. DALIS","VALERIANAE EXTR. TAB."]
[]
["Tiekėjo pasiūlymas:"]
["Nr.","Pavadinimas","Prekinis pavadinimas, kodas, gamintojas, šalis","Pakuotės dydis (prekių skačius pakuotėje)","Kiekis","Mato vienetas","Mato vnt. įkainis be PVM, Eur *","Suma be PVM, Eur"]
["18.","Valerianae extr. tab."]
["18.1.","Valerianae extr. tab.",null,null,1600,"tab.",null,{"$f":"IF(ISBLANK(G241),\"\", PRODUCT(E241,G241))","v":""}]
[null,null,null,null,null,null,"Suma be PVM",{"$f":"IF(H241=\"\",\"\",SUM(H241:H241))","v":""},{"$f":"IF(H241=\"\",\"Neužpildytos visos objektų kainos\",\"\")","v":"Neužpildytos visos objektų kainos"}]
[null,null,null,null,null,null,"PVM suma"]
[null,null,null,null,null,null,"Suma su PVM",{"$f":"IF(ISBLANK(H243), \"\", SUM(H242:H243))","v":""}]
[]
[]
[]
["19. DALIS","VITA-POS  UNG. OPHT. 5,0 (ARBA LYGIAVERTIS)"]
[]
["Tiekėjo pasiūlymas:"]
["Nr.","Pavadinimas","Prekinis pavadinimas, kodas, gamintojas, šalis","Pakuotės dydis (prekių skačius pakuotėje)","Kiekis","Mato vienetas","Mato vnt. įkainis be PVM, Eur *","Suma be PVM, Eur"]
["19.","Vita-pos  ung. opht. 5,0 (arba lygiavertis)"]
["19.1.","Vita-pos  ung. opht. 5,0 (arba lygiavertis)",null,null,20,"vnt.",null,{"$f":"IF(ISBLANK(G253),\"\", PRODUCT(E253,G253))","v":""}]
[null,null,null,null,null,null,"Suma be PVM",{"$f":"IF(H253=\"\",\"\",SUM(H253:H253))","v":""},{"$f":"IF(H253=\"\",\"Neužpildytos visos objektų kainos\",\"\")","v":"Neužpildytos visos objektų kainos"}]
[null,null,null,null,null,null,"PVM suma"]
[null,null,null,null,null,null,"Suma su PVM",{"$f":"IF(ISBLANK(H255), \"\", SUM(H254:H255))","v":""}]
[]
[]
[]
["20. DALIS","ETILCHLORIDO PURŠKALAS"]
[]
["Tiekėjo pasiūlymas:"]
["Nr.","Pavadinimas","Prekinis pavadinimas, kodas, gamintojas, šalis","Pakuotės dydis (prekių skačius pakuotėje)","Kiekis","Mato vienetas","Mato vnt. įkainis be PVM, Eur *","Suma be PVM, Eur"]
["20.","Etilchlorido purškalas"]
["20.1.","Etilchlorido purškalas",null,null,227500,"ml",null,{"$f":"IF(ISBLANK(G265),\"\", PRODUCT(E265,G265))","v":""}]
[null,null,null,null,null,null,"Suma be PVM",{"$f":"IF(H265=\"\",\"\",SUM(H265:H265))","v":""},{"$f":"IF(H265=\"\",\"Neužpildytos visos objektų kainos\",\"\")","v":"Neužpildytos visos objektų kainos"}]
[null,null,null,null,null,null,"PVM suma"]
[null,null,null,null,null,null,"Suma su PVM",{"$f":"IF(ISBLANK(H267), \"\", SUM(H266:H267))","v":""}]
[]
[]
[]
["21. DALIS","LUBRIKANTAS 5,0"]
[]
["Tiekėjo pasiūlymas:"]
["Nr.","Pavadinimas","Prekinis pavadinimas, kodas, gamintojas, šalis","Pakuotės dydis (prekių skačius pakuotėje)","Kiekis","Mato vienetas","Mato vnt. įkainis be PVM, Eur *","Suma be PVM, Eur"]
["21.","Lubrikantas 5,0"]
["21.1.","Lubrikantas 5,0",null,null,4200,"vnt.",null,{"$f":"IF(ISBLANK(G277),\"\", PRODUCT(E277,G277))","v":""}]
[null,null,null,null,null,null,"Suma be PVM",{"$f":"IF(H277=\"\",\"\",SUM(H277:H277))","v":""},{"$f":"IF(H277=\"\",\"Neužpildytos visos objektų kainos\",\"\")","v":"Neužpildytos visos objektų kainos"}]
[null,null,null,null,null,null,"PVM suma"]
[null,null,null,null,null,null,"Suma su PVM",{"$f":"IF(ISBLANK(H279), \"\", SUM(H278:H279))","v":""}]
[]
[]
[]
["22. DALIS","ŠALDANTIS PAKETAS"]
[]
["Tiekėjo pasiūlymas:"]
["Nr.","Pavadinimas","Prekinis pavadinimas, kodas, gamintojas, šalis","Pakuotės dydis (prekių skačius pakuotėje)","Kiekis","Mato vienetas","Mato vnt. įkainis be PVM, Eur *","Suma be PVM, Eur"]
["22.","Šaldantis paketas"]
["22.1.","Šaldantis paketas",null,null,1100,"vnt.",null,{"$f":"IF(ISBLANK(G289),\"\", PRODUCT(E289,G289))","v":""}]
[null,null,null,null,null,null,"Suma be PVM",{"$f":"IF(H289=\"\",\"\",SUM(H289:H289))","v":""},{"$f":"IF(H289=\"\",\"Neužpildytos visos objektų kainos\",\"\")","v":"Neužpildytos visos objektų kainos"}]
[null,null,null,null,null,null,"PVM suma"]
[null,null,null,null,null,null,"Suma su PVM",{"$f":"IF(ISBLANK(H291), \"\", SUM(H290:H291))","v":""}]
[]
[]
[]
["23. DALIS","TVARSTIS AKIES STERILUS"]
[]
["Tiekėjo pasiūlymas:"]
["Nr.","Pavadinimas","Prekinis pavadinimas, kodas, gamintojas, šalis","Pakuotės dydis (prekių skačius pakuotėje)","Kiekis","Mato vienetas","Mato vnt. įkainis be PVM, Eur *","Suma be PVM, Eur"]
["23.","Tvarstis akies sterilus"]
["23.1.","Tvarstis akies sterilus",null,null,1300,"vnt.",null,{"$f":"IF(ISBLANK(G301),\"\", PRODUCT(E301,G301))","v":""}]
[null,null,null,null,null,null,"Suma be PVM",{"$f":"IF(H301=\"\",\"\",SUM(H301:H301))","v":""},{"$f":"IF(H301=\"\",\"Neužpildytos visos objektų kainos\",\"\")","v":"Neužpildytos visos objektų kainos"}]
[null,null,null,null,null,null,"PVM suma"]
[null,null,null,null,null,null,"Suma su PVM",{"$f":"IF(ISBLANK(H303), \"\", SUM(H302:H303))","v":""}]
[]
[]
[]
["24. DALIS","AKIES APSAUGINIS GAUBTELIS, PLASTIKINIS, SU GUMELE"]
[]
["Tiekėjo pasiūlymas:"]
["Nr.","Pavadinimas","Prekinis pavadinimas, kodas, gamintojas, šalis","Pakuotės dydis (prekių skačius pakuotėje)","Kiekis","Mato vienetas","Mato vnt. įkainis be PVM, Eur *","Suma be PVM, Eur"]
["24.","Akies apsauginis gaubtelis, plastikinis, su gumele"]
["24.1.","Akies apsauginis gaubtelis, plastikinis, su gumele",null,null,3500,"vnt.",null,{"$f":"IF(ISBLANK(G313),\"\", PRODUCT(E313,G313))","v":""}]
[null,null,null,null,null,null,"Suma be PVM",{"$f":"IF(H313=\"\",\"\",SUM(H313:H313))","v":""},{"$f":"IF(H313=\"\",\"Neužpildytos visos objektų kainos\",\"\")","v":"Neužpildytos visos objektų kainos"}]
[null,null,null,null,null,null,"PVM suma"]
[null,null,null,null,null,null,"Suma su PVM",{"$f":"IF(ISBLANK(H315), \"\", SUM(H314:H315))","v":""}]
[]
[]
[]
["25. DALIS","MENTELĖ MEDINĖ, VIENKARTINĖ N.100"]
[]
["Tiekėjo pasiūlymas:"]
["Nr.","Pavadinimas","Prekinis pavadinimas, kodas, gamintojas, šalis","Pakuotės dydis (prekių skačius pakuotėje)","Kiekis","Mato vienetas**","Mato vnt. įkainis be PVM, Eur *","Suma be PVM, Eur"]
["25.","Mentelė medinė, vienkartinė N.100"]
["25.1.","Mentelė medinė, vienkartinė N.100",null,null,650,"N.100",null,{"$f":"IF(ISBLANK(G325),\"\", PRODUCT(E325,G325))","v":""}]
["** nurodyti 100 vnt. mentelių kainą.",null,null,null,null,null,"Suma be PVM",{"$f":"IF(H325=\"\",\"\",SUM(H325:H325))","v":""},{"$f":"IF(H325=\"\",\"Neužpildytos visos objektų kainos\",\"\")","v":"Neužpildytos visos objektų kainos"}]
[null,null,null,null,null,null,"PVM suma"]
[null,null,null,null,null,null,"Suma su PVM",{"$f":"IF(ISBLANK(H327), \"\", SUM(H326:H327))","v":""}]
[]
[]
[]
["26. DALIS","VARŽTIS, SUAUGUSIEMS"]
[]
["Tiekėjo pasiūlymas:"]
["Nr.","Pavadinimas","Prekinis pavadinimas, kodas, gamintojas, šalis","Pakuotės dydis (prekių skačius pakuotėje)","Kiekis","Mato vienetas","Mato vnt. įkainis be PVM, Eur *","Suma be PVM, Eur"]
["26.","Varžtis, suaugusiems"]
["26.1.","Varžtis, suaugusiems",null,null,500,"vnt.",null,{"$f":"IF(ISBLANK(G337),\"\", PRODUCT(E337,G337))","v":""}]
[null,null,null,null,null,null,"Suma be PVM",{"$f":"IF(H337=\"\",\"\",SUM(H337:H337))","v":""},{"$f":"IF(H337=\"\",\"Neužpildytos visos objektų kainos\",\"\")","v":"Neužpildytos visos objektų kainos"}]
[null,null,null,null,null,null,"PVM suma"]
[null,null,null,null,null,null,"Suma su PVM",{"$f":"IF(ISBLANK(H339), \"\", SUM(H338:H339))","v":""}]
[]
[]
[]
["27. DALIS","PLĖTIKLIS NOSIES"]
[]
["Tiekėjo pasiūlymas:"]
["Nr.","Pavadinimas","Prekinis pavadinimas, kodas, gamintojas, šalis","Pakuotės dydis (prekių skačius pakuotėje)","Kiekis","Mato vienetas","Mato vnt. įkainis be PVM, Eur *","Suma be PVM, Eur"]
["27.","Plėtiklis nosies"]
["27.1.","Plėtiklis nosies",null,null,60,"vnt.",null,{"$f":"IF(ISBLANK(G349),\"\", PRODUCT(E349,G349))","v":""}]
[null,null,null,null,null,null,"Suma be PVM",{"$f":"IF(H349=\"\",\"\",SUM(H349:H349))","v":""},{"$f":"IF(H349=\"\",\"Neužpildytos visos objektų kainos\",\"\")","v":"Neužpildytos visos objektų kainos"}]
[null,null,null,null,null,null,"PVM suma"]
[null,null,null,null,null,null,"Suma su PVM",{"$f":"IF(ISBLANK(H351), \"\", SUM(H350:H351))","v":""}]
[]
[]
[]
["28. DALIS","ĮTVARAS UNIVERSALUS, SUSUKAMAS"]
[]
["Tiekėjo pasiūlymas:"]
["Nr.","Pavadinimas","Prekinis pavadinimas, kodas, gamintojas, šalis","Pakuotės dydis (prekių skačius pakuotėje)","Kiekis","Mato vienetas","Mato vnt. įkainis be PVM, Eur *","Suma be PVM, Eur"]
["28.","Įtvaras universalus, susukamas"]
["28.1.","Įtvaras universalus, susukamas",null,null,200,"vnt.",null,{"$f":"IF(ISBLANK(G361),\"\", PRODUCT(E361,G361))","v":""}]
[null,null,null,null,null,null,"Suma be PVM",{"$f":"IF(H361=\"\",\"\",SUM(H361:H361))","v":""},{"$f":"IF(H361=\"\",\"Neužpildytos visos objektų kainos\",\"\")","v":"Neužpildytos visos objektų kainos"}]
[null,null,null,null,null,null,"PVM suma"]
[null,null,null,null,null,null,"Suma su PVM",{"$f":"IF(ISBLANK(H363), \"\", SUM(H362:H363))","v":""}]
[]
[]
[]
["29. DALIS","SIŪLAI CHIRURGINIAI"]
[]
["Tiekėjo pasiūlymas:"]
["Nr.","Pavadinimas","Prekinis pavadinimas, kodas, gamintojas, šalis","Pakuotės dydis (prekių skačius pakuotėje)","Kiekis","Mato vienetas","Mato vnt. įkainis be PVM, Eur *","Suma be PVM, Eur"]
["29.","Siūlai chirurginiai"]
["29.1.","2/0 nailonas",null,null,192,"vnt.",null,{"$f":"IF(ISBLANK(G373),\"\", PRODUCT(E373,G373))","v":""}]
["29.2.","3/0 nailonas",null,null,396,"vnt.",null,""]
["29.3.","4/0 nailonas",null,null,396,"vnt.",null,""]
["29.4.","2/0 poliglaktinas/poligikolio r.",null,null,192,"vnt.",null,""]
["29.5.","3/0 poliglaktinas/poliglikolio r.",null,null,396,"vnt.",null,""]
["29.6.","4/0 poliglaktinas/poliglikolio r.",null,null,396,"vnt.",null,""]
[null,null,null,null,null,null,"Suma be PVM",{"$f":"IF((SUMPRODUCT(--(H373:H378=\"\"))>0), \"\", SUM(H373:H378))","v":""},{"$f":"IF((SUMPRODUCT(--(H373:H378=\"\"))>0), \"Neužpildytos visų objektų kainos\", \"\")","v":"Neužpildytos visų objektų kainos"}]
[null,null,null,null,null,null,"PVM suma"]
[null,null,null,null,null,null,"Suma su PVM",{"$f":"IF(ISBLANK(H380), \"\", SUM(H379:H380))","v":""}]
[]
[]
[]
["30. DALIS","KVĖPAVIMO SISTEMOS PRIEDAI ULTRAGARSINIAM INHALIATORIUI"]
[]
["Tiekėjo pasiūlymas:"]
["Nr.","Pavadinimas","Prekinis pavadinimas, kodas, gamintojas, šalis","Pakuotės dydis (prekių skačius pakuotėje)","Kiekis","Mato vienetas","Mato vnt. įkainis be PVM, Eur *","Suma be PVM, Eur"]
["30.","Kvėpavimo sistemos priedai ultragarsiniam inhaliatoriui"]
["30.1.","Vamzdelis kvėpavimo, 50 m","Prekės pavadinimas: Matuojamas lankstus 22 mm vamzdelis (karpomas kas 15 cm)\nPrekės kodas: 1573000\nGamintojas: Intersurgical\nŠalis: Lietuva","Kiekis dėžėje: 1",12,"vnt.",25,{"$f":"IF(ISBLANK(G390),\"\", PRODUCT(E390,G390))","v":300}]
["30.2.","Kaukė, aerozolinė, suaugusiems","Prekės pavadinimas: Aerozolinės kaukės\nPrekės kodas: 1188015\nGamintojas: Intersurgical\nŠalis: Lietuva","Kiekis dėžėje: 50",1250,"vnt.",0.38100000000000001,{"$f":"IF(ISBLANK(G391),\"\", PRODUCT(E391,G391))","v":476.25}]
["30.3.","Kandiklis, kvėpavimo, suaugusiems","Prekės pavadinimas: Tiesus kandiklis su jungtimi 22\nPrekės kodas: 1930000\nGamintojas: Intersurgical\nŠalis: Lietuva","Kiekis dėžėje: 40",1250,"vnt.",0.2,{"$f":"IF(ISBLANK(G392),\"\", PRODUCT(E392,G392))","v":250}]
[null,null,null,null,null,null,"Suma be PVM",{"$f":"IF((SUMPRODUCT(--(H390:H392=\"\"))>0), \"\", SUM(H390:H392))","v":1026.25},{"$f":"IF((SUMPRODUCT(--(H390:H392=\"\"))>0), \"Neužpildytos visų objektų kainos\", \"\")","v":""}]
[null,null,null,null,null,null,"PVM suma",51.31]
[null,null,null,null,null,null,"Suma su PVM",{"$f":"IF(ISBLANK(H394), \"\", SUM(H393:H394))","v":1077.56}]
[]
[]
[]
["31. DALIS","AUSIES PLOVIMO PRIETAISAS IR PRIEMONĖS"]
[]
["Tiekėjo pasiūlymas:"]
["Nr.","Pavadinimas","Prekinis pavadinimas, kodas, gamintojas, šalis","Pakuotės dydis (prekių skačius pakuotėje)","Kiekis","Mato vienetas","Mato vnt. įkainis be PVM, Eur *","Suma be PVM, Eur"]
["31.","Ausies plovimo prietaisas ir priemonės"]
["31.1.","Ausies plovimo prietaisas",null,null,6,"vnt.",null,{"$f":"IF(ISBLANK(G404),\"\", PRODUCT(E404,G404))","v":""}]
["31.2.","Vienkartiniai antgaliai ausies plovimo prietaisui",null,null,5000,"vnt.",null,{"$f":"IF(ISBLANK(G405),\"\", PRODUCT(E405,G405))","v":""}]
["31.3.","Dezinfekcinės tabletės ausies plovimo prietaisui",null,null,2000,"vnt.",null,{"$f":"IF(ISBLANK(G406),\"\", PRODUCT(E406,G406))","v":""}]
[null,null,null,null,null,null,"Suma be PVM",{"$f":"IF((SUMPRODUCT(--(H404:H406=\"\"))>0), \"\", SUM(H404:H406))","v":""},{"$f":"IF((SUMPRODUCT(--(H404:H406=\"\"))>0), \"Neužpildytos visų objektų kainos\", \"\")","v":"Neužpildytos visų objektų kainos"}]
[null,null,null,null,null,null,"PVM suma"]
[null,null,null,null,null,null,"Suma su PVM",{"$f":"IF(ISBLANK(H408), \"\", SUM(H407:H408))","v":""}]
[]
[]
[]
["32. DALIS","TESTAI SIFILIUI NUSTATYTI, VIENKARTINIAI:"]
[]
["Tiekėjo pasiūlymas:"]
["Nr.","Pavadinimas","Prekinis pavadinimas, kodas, gamintojas, šalis","Pakuotės dydis (prekių skačius pakuotėje)","Kiekis","Mato vienetas","Mato vnt. įkainis be PVM, Eur *","Suma be PVM, Eur"]
["32.","Testai sifiliui nustatyti, vienkartiniai:"]
["32.1.","Sifilio RPR",null,null,85,"įp.",null,{"$f":"IF(ISBLANK(G418),\"\", PRODUCT(E418,G418))","v":""}]
["32.2.","Sifilio TPHA",null,null,200,"įp.",null,{"$f":"IF(ISBLANK(G419),\"\", PRODUCT(E419,G419))","v":""}]
["32.3.","Plokštelė  sifilio TPHA tyrimui atlikti",null,null,400,"vnt.",null,{"$f":"IF(ISBLANK(G420),\"\", PRODUCT(E420,G420))","v":""}]
[null,null,null,null,null,null,"Suma be PVM",{"$f":"IF((SUMPRODUCT(--(H418:H420=\"\"))>0), \"\", SUM(H418:H420))","v":""},{"$f":"IF((SUMPRODUCT(--(H418:H420=\"\"))>0), \"Neužpildytos visų objektų kainos\", \"\")","v":"Neužpildytos visų objektų kainos"}]
[null,null,null,null,null,null,"PVM suma"]
[null,null,null,null,null,null,"Suma su PVM",{"$f":"IF(ISBLANK(H422), \"\", SUM(H421:H422))","v":""}]
[]
[]
[]
["33. DALIS","NARKOTIKŲ NUSTATYMO TESTAS, VIENKARTINIS"]
[]
["Tiekėjo pasiūlymas:"]
["Nr.","Pavadinimas","Prekinis pavadinimas, kodas, gamintojas, šalis","Pakuotės dydis (prekių skačius pakuotėje)","Kiekis","Mato vienetas","Mato vnt. įkainis be PVM, Eur *","Suma be PVM, Eur"]
["33.","Narkotikų nustatymo testas, vienkartinis"]
["33.1.","Narkotikų nustatymo testas, vienkartinis",null,null,5000,"vnt.",null,{"$f":"IF(ISBLANK(G432),\"\", PRODUCT(E432,G432))","v":""}]
[null,null,null,null,null,null,"Suma be PVM",{"$f":"IF(H432=\"\",\"\",SUM(H432:H432))","v":""},{"$f":"IF(H432=\"\",\"Neužpildytos visos objektų kainos\",\"\")","v":"Neužpildytos visos objektų kainos"}]
[null,null,null,null,null,null,"PVM suma"]
[null,null,null,null,null,null,"Suma su PVM",{"$f":"IF(ISBLANK(H434), \"\", SUM(H433:H434))","v":""}]
[]
[]
[]
["34. DALIS","SKYSTA TERPĖ GIMDOS KAKLELIO CITOLOGINIAM TYRIMUI"]
[]
["Tiekėjo pasiūlymas:"]
["Nr.","Pavadinimas","Prekinis pavadinimas, kodas, gamintojas, šalis","Pakuotės dydis (prekių skačius pakuotėje)","Kiekis","Mato vienetas","Mato vnt. įkainis be PVM, Eur *","Suma be PVM, Eur"]
["34.","Skysta terpė gimdos kaklelio citologiniam tyrimui"]
["34.1.","Skysta terpė gimdos kaklelio citologiniam tyrimui",null,null,1500,"įp.",null,{"$f":"IF(ISBLANK(G444),\"\", PRODUCT(E444,G444))","v":""}]
[null,null,null,null,null,null,"Suma be PVM",{"$f":"IF(H444=\"\",\"\",SUM(H444:H444))","v":""},{"$f":"IF(H444=\"\",\"Neužpildytos visos objektų kainos\",\"\")","v":"Neužpildytos visos objektų kainos"}]
[null,null,null,null,null,null,"PVM suma"]
[null,null,null,null,null,null,"Suma su PVM",{"$f":"IF(ISBLANK(H446), \"\", SUM(H445:H446))","v":""}]
[]
[]
[]
["35. DALIS","PRIEMONĖ INSTRUMENTŲ DEZINFEKCIJAI, AUKŠTO LYGIO"]
[]
["Tiekėjo pasiūlymas:"]
["Nr.","Pavadinimas","Prekinis pavadinimas, kodas, gamintojas, šalis","Pakuotės dydis (prekių skačius pakuotėje)","Kiekis","Mato vienetas","Mato vnt. įkainis be PVM, Eur *","Suma be PVM, Eur"]
["35.","Priemonė instrumentų dezinfekcijai, aukšto lygio"]
["35.1.","Priemonė instrumentų dezinfekcijai, aukšto lygio",null,null,150,"kg",null,{"$f":"IF(ISBLANK(G456),\"\", PRODUCT(E456,G456))","v":""}]
[null,null,null,null,null,null,"Suma be PVM",{"$f":"IF(H456=\"\",\"\",SUM(H456:H456))","v":""},{"$f":"IF(H456=\"\",\"Neužpildytos visos objektų kainos\",\"\")","v":"Neužpildytos visos objektų kainos"}]
[null,null,null,null,null,null,"PVM suma"]
[null,null,null,null,null,null,"Suma su PVM",{"$f":"IF(ISBLANK(H458), \"\", SUM(H457:H458))","v":""}]
[]
[]
[]
["36. DALIS","TABLETĖS PAVIRŠIŲ DEZINFEKCIJAI CHLORO JUNGINIŲ PAGRINDU"]
[]
["Tiekėjo pasiūlymas:"]
["Nr.","Pavadinimas","Prekinis pavadinimas, kodas, gamintojas, šalis","Pakuotės dydis (prekių skačius pakuotėje)","Kiekis","Mato vienetas","Mato vnt. įkainis be PVM, Eur *","Suma be PVM, Eur"]
["36.","Tabletės paviršių dezinfekcijai chloro junginių pagrindu"]
["36.1.","Tabletės paviršių dezinfekcijai chloro junginių pagrindu",null,null,90,"N.100",null,{"$f":"IF(ISBLANK(G468),\"\", PRODUCT(E468,G468))","v":""}]
[null,null,null,null,null,null,"Suma be PVM",{"$f":"IF(H468=\"\",\"\",SUM(H468:H468))","v":""},{"$f":"IF(H468=\"\",\"Neužpildytos visos objektų kainos\",\"\")","v":"Neužpildytos visos objektų kainos"}]
[null,null,null,null,null,null,"PVM suma"]
[null,null,null,null,null,null,"Suma su PVM",{"$f":"IF(ISBLANK(H470), \"\", SUM(H469:H470))","v":""}]

{"sheet":"Subtiekėjai ir priedai","index":1,"n_rows":100,"n_cols":11,"rows_kept":100,"cut":false,"hidden":false,"merged":[[47,0,47,9],[52,4,52,9],[50,4,50,9],[52,0,52,3],[50,0,50,3],[38,1,38,6],[37,1,37,6],[36,1,36,6],[35,1,35,6],[43,1,43,6],[42,1,42,6],[41,1,41,6],[40,1,40,6],[39,1,39,6],[32,0,32,9],[34,7,34,9],[34,1,34,6],[45,7,45,9],[42,7,42,9],[37,7,37,9],[36,7,36,9],[35,7,35,9],[44,7,44,9],[43,7,43,9],[41,7,41,9],[40,7,40,9],[39,7,39,9],[38,7,38,9],[45,1,45,6],[44,1,44,6],[1,0,2,10],[30,0,30,9],[14,5,14,7],[8,5,8,7],[7,5,7,7],[6,5,6,7],[14,8,14,9],[8,8,8,9],[7,8,7,9],[6,8,6,9],[14,0,14,1],[8,0,8,1],[7,0,7,1],[6,0,6,1],[14,2,14,4],[8,2,8,4],[7,2,7,4],[9,8,9,9],[6,2,6,4],[5,2,5,4],[5,8,5,9],[4,8,4,9],[4,5,4,7],[4,2,4,4],[4,0,4,1],[5,5,5,7],[5,0,5,1],[9,0,9,1],[13,2,13,4],[12,2,12,4],[11,2,11,4],[10,2,10,4],[9,2,9,4],[13,5,13,7],[12,5,12,7],[11,5,11,7],[10,5,10,7],[9,5,9,7],[16,0,16,10],[18,8,18,9],[18,5,18,7],[18,2,18,4],[18,0,18,1],[13,0,13,1],[12,0,12,1],[11,0,11,1],[10,0,10,1],[13,8,13,9],[12,8,12,9],[11,8,11,9],[10,8,10,9],[23,8,23,9],[22,8,22,9],[21,8,21,9],[20,8,20,9],[19,8,19,9],[28,8,28,9],[27,8,27,9],[26,8,26,9],[25,8,25,9],[24,8,24,9],[23,5,23,7],[22,5,22,7],[21,5,21,7],[20,5,20,7],[19,5,19,7],[28,5,28,7],[27,5,27,7],[26,5,26,7],[25,5,25,7],[24,5,24,7],[23,2,23,4],[22,2,22,4],[21,2,21,4],[20,2,20,4],[19,2,19,4],[28,2,28,4],[27,2,27,4],[26,2,26,4],[25,2,25,4],[24,2,24,4],[23,0,23,1],[22,0,22,1],[21,0,21,1],[20,0,20,1],[19,0,19,1],[28,0,28,1],[27,0,27,1],[26,0,26,1],[25,0,25,1],[24,0,24,1]]}
[]
["Ūkio subjektai (įskaitant kvazisubtiekėjus - fiziniai asmenys, kuriuos ketinama įdarbinti pirkimo laimėjimo atveju), kurių pajėgumais tiekėjas remiasi, kad atitiktų keliamus kvalifikacijos reikalavimus:"]
[]
[]
["Pavadinimas*",null,"Kodas, adresas",null,null,"Perduodama veikla",null,null,"Perduodamos veiklos dalis nuo visos pirkimo sutarties (Eur arba %)",null,"Kval. Reikalavimo Nr."]
["-"]
[]
[]
[]
[]
[]
[]
[]
[]
[]
[]
["Subtiekėjams / subteikėjams / subrangovams numatomos perduoti veiklos (privaloma nurodyti) ir šių ūkio subjektų pavadinimai (jei žinomi):"]
[]
["Pavadinimas",null,"Kodas, adresas",null,null,"Perduodama veikla*",null,null,"Perduodamos veiklos dalis nuo visos pirkimo sutarties (Eur arba %)"]
["-"]
[]
[]
[]
[]
[]
[]
[]
[]
[]
[]
[]
[]
["Kartu su pasiūlymu pateikiami šie dokumentai:"]
[]
["Nr.","Dokumento  pavadinimas",null,null,null,null,null,"Dokumentas yra konfidencialus? Taip/Ne"]
["1","Jungtinės veiklos kopija (jei taikoma)",null,null,null,null,null,"-"]
["2","Europos bendrasis viešųjų pirkimų dokumentas",null,null,null,null,null,"TAIP - dėl pateiktų fizinių asmenų duomenų, kuriuos atskleidus būtų pažeisti Asmens duomenų teisinės apsaugos įstatymo reikalavimai."]
["3","Subtiekimo sutartis, ketinimų protokolas, preliminarios sutartys ar kiti dokumentai, patvirtinantys, kad laimėjus pirkimą tiekėjui bus prieinami kitų ūkio subjektų ištekliai (jei pasitelkiami kvalifikacijos atitikimui)",null,null,null,null,null,"-"]
["4","Pasiūlymo galiojimo užtikrinimas",null,null,null,null,null,"-"]
["5","Pasiūlymo atitikimą pirkimo sąlygų techninei specifikacijai pagrindžiantys dokumentai",null,null,null,null,null,"-"]
[6,"Pasiūlymas",null,null,null,null,null,"TAIP - dėl pateiktų fizinių asmenų duomenų, kuriuos atskleidus būtų pažeisti Asmens duomenų teisinės apsaugos įstatymo reikalavimai."]
[7,"CE kokybės sertifikatai",null,null,null,null,null,"NE"]
[8,"Įgaliojimas",null,null,null,null,null,"TAIP - dėl pateiktų fizinių asmenų duomenų, kuriuos atskleidus būtų pažeisti Asmens duomenų teisinės apsaugos įstatymo reikalavimai."]
[9,"Siūlomų gaminių aprašymai",null,null,null,null,null,"NE"]
[]
[]
[]
["Pasiūlyme nurodyta Prekės kaina, išskyrus jos sudedamąsias dalis, subtiekėjai, taip pat kita informacija, kuri teisės aktų nustatyta tvarka turi būti skelbiama arba kitokiu būdu viešai prieinama visuomenei, nėra laikoma konfidencialia informacija. Konfidencialią informaciją sudaro, visų pirma, komercinė (gamybinė) paslaptis ir konfidencialieji pasiūlymų aspektai. Informacija, kurią viešai skelbti įpareigoja Lietuvos Respublikos įstatymai, negali būti tiekėjo nurodoma kaip konfidenciali, todėl, tiekėjui nurodžius tokią informaciją kaip konfidencialią, perkančioji organizacija turi teisę ją skelbti. Jei tiekėjas nenurodo konfidencialios informacijos, laikoma, kad konfidencialios informacijos tiekėjo pasiūlyme nėra. Vadovaujantis Informacijos viešinimo Centrinėje viešųjų pirkimų informacinėje sistemoje tvarkos aprašu, patvirtintu Viešųjų pirkimų tarnybos direktoriaus 2017 m. birželio 19 d. įsakymu Nr. 1S-91 „Dėl Informacijos viešinimo Centrinėje viešųjų pirkimų informacinėje sistemoje tvarkos aprašo patvirtinimo“, perkančioji organizacija laimėjusio dalyvio pasiūlymą, išskyrus informaciją, kurią tiekėjas nurodė kaip konfidencialią, paskelbs CVP IS."]
[]
[]
["Tiekėjo arba jo įgalioto asmens pareigų pavadinimas:",null,null,null,"Klientų aptarnavimo specialistė"]
[]
["Pasirašančio asmens vardas ir pavardė:",null,null,null,"Ingrida Zarembienė"]
[]
[]
[]
[]
[]
[]
[]
[]
[]
[]
[]
[]
[]
[]
[]
[]
[]
[]
[]
[]
[]
[]
[]
[]
[]
[]
[]
[]
[]
[]
[]
[]
[]
[]
[]
[]
[]
[]
[]
[]
[]
[]
[]
[]
[]
[]
["760 2021-06-18 11:03:07"]